fUST/lending_fUST_20250223
["ID","MTS","AMOUNT","RATE_DAILY","PERIOD"]
[354118022,1740257442733,-507.31321814,0.00015759,2]
[354118023,1740257442742,-500.0,0.00015759,2]
[354118024,1740257442752,-500.0,0.00015759,2]
[354118026,1740257442761,-500.0,0.00015773,2]
[354118027,1740257442771,-238.222542,0.00015775,2]
[354118029,1740257442780,-2199.91,0.00015813,2]
[354118031,1740257442789,-695.52,0.00015813,2]
[354118032,1740257442799,-500.0,0.00015813,2]
[354118033,1740257442808,-17888.7,0.00015814,2]
[354118035,1740257442818,-566.2,0.00015814,2]
[354118037,1740257442828,-795.31,0.00015814,2]
[354118038,1740257442837,-1242.69,0.00015814,2]
[354118040,1740257442847,-151.0,0.00015814,2]
[354118042,1740257442857,-151.0,0.00015814,2]
[354118044,1740257442866,-151.0,0.00015815,2]
[354118046,1740257442876,-157.46,0.00015816,2]
[354118047,1740257442885,-151.0,0.00015824,2]
[354118049,1740257442895,-212.407257,0.00015824,2]
[354118051,1740257442904,-3000.0,0.00015824,2]
[354118053,1740257442915,-500.0,0.00015841,2]
[354118054,1740257442927,-516.16,0.00015841,2]
[354118056,1740257442936,-500.0,0.00015841,2]
[354118057,1740257442947,-13278.19900895,0.00015845,2]
[354118059,1740257442957,-420.0,0.00015874,2]
[354118061,1740257442967,-2199.91,0.00015895,2]
[354118062,1740257442977,-695.52,0.00015895,2]
[354118064,1740257442986,-500.0,0.00015895,2]
[354118066,1740257442999,-17888.7,0.00015896,2]
[354118067,1740257443010,-566.2,0.00015896,2]
[354118068,1740257443019,-795.31,0.00015896,2]
[354118069,1740257443028,-1242.69,0.00015896,2]
[354118070,1740257443038,-2405.71934659,0.00015898,3]
[354118072,1740257443047,-151.0,0.00015898,2]
[354118073,1740257443057,-349.0,0.00015924,2]
[354118075,1740257443067,-463.0,0.00015924,2]
[354118076,1740257443076,-349.0,0.00015924,2]
[354118077,1740257443086,-349.0,0.00015924,2]
[354118078,1740257443095,-349.0,0.00015924,2]
[354118079,1740257443105,-349.0,0.00015924,2]
[354118080,1740257443115,-349.0,0.00015924,2]
[354118081,1740257443124,-417.76896849,0.00015924,2]
[354118082,1740257443133,-500.0,0.00015924,2]
[354118083,1740257443143,-420.24103151,0.00015948,2]
[354118084,1740257443152,-148221.33410155,0.00015948,2]
[354118085,1740257443162,-151.0,0.00015972,2]
[354118086,1740257443172,-289.2,0.00015972,2]
[354118087,1740257443182,-151.0,0.00015972,2]
[354118088,1740257443191,-289.2,0.00015972,2]
[354118089,1740257443201,-151.0,0.00015972,2]
[354118090,1740257443210,-2199.91,0.00015977,2]
[354118091,1740257443220,-695.52,0.00015977,2]
[354118092,1740257443230,-500.0,0.00015977,2]
[354118093,1740257443239,-17888.7,0.00015979,2]
[354118094,1740257443249,-566.2,0.00015979,2]
[354118095,1740257443258,-795.31,0.00015979,2]
[354118096,1740257443267,-1242.69,0.00015979,2]
[354118097,1740257443277,-1155.0,0.00016,2]
[354118098,1740257443286,-500.0,0.00016006,2]
[354118099,1740257443296,-2199.91,0.0001606,2]
[354118100,1740257443305,-695.52,0.0001606,2]
[354118101,1740257443314,-500.0,0.0001606,2]
[354118102,1740257443323,-174.036188,0.00016061,2]
[354118103,1740257443333,-17888.7,0.00016061,2]
[354118104,1740257443342,-566.2,0.00016061,2]
[354118105,1740257443351,-795.31,0.00016061,2]
[354118106,1740257443361,-1242.69,0.00016061,2]
[354118107,1740257443371,-151.0,0.00016061,2]
[354118108,1740257443380,-151.0,0.00016061,2]
[354118109,1740257443389,-321.56,0.00016088,2]
[354118110,1740257443398,-1500.0,0.00016122,2]
[354118111,1740257443408,-2199.91,0.00016142,2]
[354118112,1740257443417,-695.52,0.00016142,2]
[354118113,1740257443426,-644.13,0.00016142,2]
[354118114,1740257443436,-17888.7,0.00016143,2]
[354118115,1740257443446,-566.2,0.00016143,2]
[354118116,1740257443455,-795.31,0.00016143,2]
[354118117,1740257443465,-1242.69,0.00016143,2]
[354118118,1740257443476,-499.0,0.00016164,2]
[354118119,1740257443486,-2199.91,0.00016224,2]
[354118120,1740257443495,-695.52,0.00016224,2]
[354118121,1740257443506,-17888.7,0.00016225,2]
[354118122,1740257443595,-566.2,0.00016225,2]
[354118123,1740257443605,-795.31,0.00016225,2]
[354118124,1740257443615,-1242.69,0.00016225,2]
[354118125,1740257443625,-151.0,0.00016226,2]
[354118126,1740257443635,-2199.91,0.00016306,2]
[354118127,1740257443644,-695.52,0.00016306,2]
[354118128,1740257443654,-17888.7,0.00016307,2]
[354118129,1740257443664,-566.2,0.00016307,2]
[354118130,1740257443673,-795.31,0.00016307,2]
[354118131,1740257443683,-1242.69,0.00016307,2]
[354118132,1740257443692,-437.98803263,0.00016321,2]
[354118133,1740257443701,-150.0,0.00016333,2]
[354118134,1740257443711,-151.0,0.00016368,2]
[354118135,1740257443720,-289.2,0.00016368,2]
[354118136,1740257443730,-151.0,0.00016368,2]
[354118137,1740257443740,-289.2,0.00016368,2]
[354118138,1740257443749,-150.0,0.00016378,2]
[354118139,1740257443758,-1970.0,0.00016378,2]
[354118140,1740257443767,-538.0,0.00016378,2]
[354118141,1740257443776,-2287.0,0.00016378,2]
[354118142,1740257443786,-396.0,0.00016378,2]
[354118143,1740257443797,-150.0,0.00016378,2]
[354118144,1740257443806,-2200.06935907,0.00016388,2]
[354118145,1740257443816,-695.64,0.00016388,2]
[354118146,1740257443825,-17888.7229,0.0001639,2]
[354118147,1740257443835,-566.4,0.0001639,2]
[354118148,1740257443844,-795.43,0.0001639,2]
[354118149,1740257443854,-1242.89,0.0001639,2]
[354118150,1740257443863,-151.0,0.0001639,2]
[354118151,1740257443873,-296.42630067,0.0001639,2]
[354118152,1740257443882,-6246.69211354,0.000164,2]
[354118153,1740257443892,-151.0,0.00016438,2]
[354118154,1740257443901,-151.0,0.00016438,2]
[354118155,1740257443911,-151.0,0.00016438,2]
[354118156,1740257443924,-151.0,0.00016438,2]
[354118157,1740257443933,-151.0,0.00016438,2]
[354118158,1740257443943,-151.0,0.00016438,2]
[354118159,1740257443952,-252.49779,0.00016438,2]
[354118160,1740257443962,-151.0,0.00016489,2]
[354118161,1740257443973,-289.2,0.00016489,2]
[354118162,1740257443982,-151.0,0.00016489,2]
[354118163,1740257443993,-289.2,0.00016489,2]
[354118164,1740257444003,-445.94572311,0.0001649,2]
[354118165,1740257444012,-151.0,0.0001649,2]
[354118166,1740257444021,-151.0,0.00016499,2]
[354118167,1740257444031,-289.2,0.00016499,2]
[354118168,1740257444040,-151.0,0.00016499,2]
[354118169,1740257444049,-289.2,0.00016499,2]
[354118170,1740257444059,-299079.5392798,0.000165,8]
[354118171,1740257444120,-500.0,0.00014499,2]
[354118172,1740257444130,-144.95453371,0.00016378,2]
[354118173,1740257444145,-5.04546629,0.00016378,2]
[354118174,1740257444155,-150.0,0.00016378,2]
[354118175,1740257444164,-35524.33282878,0.000165,8]
[354118176,1740257444200,-68.56517946,0.000165,8]
[354118192,1740257446028,-8062.1868357,0.000165,8]
[354118193,1740257472368,-150.0,9.78e-05,2]
[354118194,1740257473976,-150.0,9.78e-05,2]
[354118195,1740257474649,-150.0,9.78e-05,2]
[354118196,1740257476387,-150.0,9.78e-05,2]
[354118197,1740257482805,-150.0,9.78e-05,2]
[354118198,1740257517744,-1200.0,9.78e-05,2]
[354118199,1740257573857,-1210.0,9.78e-05,2]
[354118200,1740257599019,-40.0,9.78e-05,2]
[354118201,1740257599044,-110.0,0.00010959,2]
[354118202,1740257601652,-91.82,0.00010959,2]
[354118203,1740257601674,-58.18,0.00010959,2]
[354118204,1740257604837,-110.01,0.00010959,2]
[354118205,1740257604860,-39.99,0.0001115,2]
[354118206,1740257610726,-150.0,0.00010959,2]
[354118207,1740257615229,-150.0,0.00010959,2]
[354118208,1740257814164,-151.0,9.78e-05,2]
[354118209,1740257846055,1000.0,0.00019,120]
[354118210,1740258572178,-244.392521,9.041e-05,2]
[354118211,1740258572199,-269.34050054,9.78e-05,2]
[354118239,1740258632363,-2479.65949946,9.78e-05,2]
[354118241,1740258632375,-3303.53430167,0.00010958,2]
[354118243,1740258632385,-540.95,0.00010959,2]
[354118245,1740258632394,-1890.16578387,0.0001115,2]
[354118249,1740258632420,-1009.83421613,0.0001115,2]
[354118251,1740258632429,-300.0,0.00012519,2]
[354118253,1740258632439,-2900.0,0.0001252,2]
[354118255,1740258632448,-692.53025134,0.00012858,2]
[354118257,1740258632457,-2759.4366186,0.00012859,2]
[354118259,1740258632466,-4777.91089708,0.00012859,2]
[354118262,1740258632481,-20122.08910292,0.00012859,2]
[354118264,1740258632490,-501.18039987,0.00013673,2]
[354118266,1740258632499,-500.0,0.00013673,2]
[354118268,1740258632508,-500.0,0.00013673,2]
[354118270,1740258632517,-174.91972349,0.0001368,2]
[354118272,1740258632526,-500.0,0.00013698,2]
[354118274,1740258632535,-500.0,0.00013698,2]
[354118276,1740258632544,-500.0,0.00013698,2]
[354118278,1740258632554,-500.0,0.00013698,2]
[354118280,1740258632563,-500.0,0.00013698,2]
[354118282,1740258632571,-500.0,0.00013698,2]
[354118284,1740258632580,-500.0,0.00013698,2]
[354118286,1740258632590,-500.0,0.00013698,2]
[354118288,1740258632599,-500.0,0.00013698,2]
[354118290,1740258632608,-500.0,0.00013698,2]
[354118292,1740258632617,-509.35374891,0.00013698,2]
[354118294,1740258632626,-500.0,0.00013698,2]
[354118296,1740258632635,-500.0,0.00013698,2]
[354118298,1740258632644,-502.04530904,0.00013698,2]
[354118300,1740258632653,-500.0,0.00013698,2]
[354118302,1740258632662,-500.0,0.00013698,2]
[354118304,1740258632671,-500.0,0.00013698,2]
[354118306,1740258632680,-500.0,0.00013698,2]
[354118308,1740258632689,-178.01080506,0.00013698,2]
[354118310,1740258632698,-500.0,0.00013698,2]
[354118312,1740258632708,-500.0,0.00013698,2]
[354118314,1740258632717,-141.97055523,0.00013698,2]
[354118316,1740258632731,-358.02944477,0.00013698,2]
[354118319,1740258632740,-15.60462673,0.00013698,2]
[354118321,1740258632751,-163.01380716,0.00013698,2]
[354118323,1740258632767,-500.0,0.00013698,2]
[354118325,1740258632776,-500.0,0.00013698,2]
[354118327,1740258632785,-500.0,0.00013698,2]
[354118329,1740258632794,-511.01475335,0.00013698,2]
[354118331,1740258632803,-500.0,0.00013698,2]
[354118333,1740258632813,-500.0,0.00013698,2]
[354118335,1740258632821,-500.0,0.00013698,2]
[354118337,1740258632830,-500.0,0.00013698,2]
[354118339,1740258632839,-500.0,0.00013698,2]
[354118341,1740258632848,-500.0,0.00013698,2]
[354118343,1740258632858,-500.0,0.00013698,2]
[354118345,1740258632867,-352.65659882,0.00013698,2]
[354118346,1740258632876,-500.0,0.00013698,2]
[354118349,1740258632886,-238.91887548,0.00013698,2]
[354118362,1740258633003,-609.29778675,0.00013698,2]
[354118364,1740258633016,-500.0,0.00013698,2]
[354118366,1740258633026,-207.01405791,0.00013698,2]
[354118368,1740258633035,-500.0,0.00013698,2]
[354118370,1740258633045,-500.0,0.00013698,2]
[354118372,1740258633054,-500.0,0.00013698,2]
[354118375,1740258633065,-500.0,0.00013698,2]
[354118376,1740258633074,-500.0,0.00013698,2]
[354118378,1740258633083,-500.0,0.00013698,2]
[354118380,1740258633093,-500.0,0.00013698,2]
[354118383,1740258633104,-500.0,0.00013698,2]
[354118385,1740258633114,-500.0,0.00013698,2]
[354118386,1740258633123,-500.0,0.00013698,2]
[354118388,1740258633133,-500.0,0.00013698,2]
[354118390,1740258633144,-500.0,0.00013698,2]
[354118392,1740258633154,-500.0,0.00013698,2]
[354118395,1740258633164,-500.0,0.00013698,2]
[354118396,1740258633174,-500.0,0.00013698,2]
[354118399,1740258633185,-500.0,0.00013698,2]
[354118401,1740258633195,-500.0,0.00013698,2]
[354118403,1740258633205,-500.0,0.00013698,2]
[354118405,1740258633215,-500.0,0.00013698,2]
[354118406,1740258633225,-500.0,0.00013698,2]
[354118408,1740258633235,-513.82727135,0.00013698,2]
[354118411,1740258633245,-500.0,0.00013698,2]
[354118413,1740258633256,-500.0,0.00013698,2]
[354118415,1740258633265,-508.8,0.00013698,2]
[354118417,1740258633275,-500.0,0.00013698,2]
[354118419,1740258633285,-500.0,0.00013698,2]
[354118421,1740258633300,-500.0,0.00013698,2]
[354118423,1740258633312,-500.0,0.00013698,2]
[354118425,1740258633321,-500.0,0.00013698,2]
[354118427,1740258633332,-500.0,0.00013698,2]
[354118429,1740258633342,-500.0,0.00013698,2]
[354118431,1740258633351,-500.0,0.00013698,2]
[354118433,1740258633360,-500.0,0.00013698,2]
[354118435,1740258633370,-271.0707789,0.00013698,2]
[354118436,1740258633381,-500.0,0.00013698,2]
[354118438,1740258633391,-500.0,0.00013698,2]
[354118440,1740258633401,-222.91450135,0.00013698,2]
[354118442,1740258633411,-500.0,0.00013698,2]
[354118444,1740258633421,-500.0,0.00013698,2]
[354118445,1740258633430,-410.70997198,0.00013698,2]
[354118447,1740258633439,-506.23186168,0.00013698,2]
[354118449,1740258633448,-500.0,0.00013698,2]
[354118451,1740258633458,-500.0,0.00013698,2]
[354118453,1740258633467,-500.0,0.00013698,2]
[354118455,1740258633476,-500.0,0.00013698,2]
[354118456,1740258633485,-500.0,0.00013698,2]
[354118458,1740258633494,-500.0,0.00013698,2]
[354118460,1740258633504,-500.42334935,0.00013698,2]
[354118462,1740258633514,-500.0,0.00013698,2]
[354118464,1740258633523,-500.0,0.00013698,2]
[354118466,1740258633533,-500.0,0.00013698,2]
[354118467,1740258633542,-500.0,0.00013698,2]
[354118469,1740258633552,-500.0,0.00013698,2]
[354118471,1740258633561,-500.0,0.00013698,2]
[354118473,1740258633570,-500.0,0.00013698,2]
[354118474,1740258633579,-500.0,0.00013698,2]
[354118476,1740258633589,-500.0,0.00013698,2]
[354118478,1740258633599,-500.0,0.00013698,2]
[354118480,1740258633608,-500.0,0.00013698,2]
[354118482,1740258633617,-500.0,0.00013698,2]
[354118484,1740258633626,-500.0,0.00013698,2]
[354118486,1740258633635,-500.0,0.00013698,2]
[354118488,1740258633645,-360.6435744,0.00013698,2]
[354118490,1740258633655,-500.0,0.00013698,2]
[354118492,1740258633664,-500.0,0.00013698,2]
[354118494,1740258633674,-500.0,0.00013698,2]
[354118496,1740258633683,-500.0,0.00013698,2]
[354118498,1740258633696,-500.0,0.00013698,2]
[354118500,1740258633706,-461.5685709,0.00013698,2]
[354118502,1740258633716,-500.0,0.00013698,2]
[354118504,1740258633725,-500.0,0.00013698,2]
[354118506,1740258633735,-500.0,0.00013698,2]
[354118508,1740258633745,-500.0,0.00013698,2]
[354118510,1740258633754,-500.0,0.00013698,2]
[354118512,1740258633764,-500.0,0.00013698,2]
[354118514,1740258633773,-500.0,0.00013698,2]
[354118516,1740258633782,-500.57141468,0.00013698,2]
[354118518,1740258633792,-500.0,0.00013698,2]
[354118520,1740258633801,-502.09228693,0.00013698,2]
[354118522,1740258633810,-500.0,0.00013698,2]
[354118524,1740258633819,-500.0,0.00013698,2]
[354118526,1740258633829,-500.0,0.00013698,2]
[354118528,1740258633838,-500.0,0.00013698,2]
[354118530,1740258633847,-500.0,0.00013698,2]
[354118532,1740258633857,-500.0,0.00013698,2]
[354118534,1740258633867,-500.0,0.00013698,2]
[354118537,1740258633876,-500.0,0.00013698,2]
[354118539,1740258633886,-405.8240027,0.00013698,2]
[354118541,1740258633896,-500.0,0.00013698,2]
[354118543,1740258633906,-500.0,0.00013698,2]
[354118545,1740258633915,-568.6330372,0.00013698,2]
[354118547,1740258633925,-500.0,0.00013698,2]
[354118549,1740258633934,-500.33329908,0.00013698,2]
[354118550,1740258633943,-500.34390743,0.00013698,2]
[354118552,1740258633953,-500.0,0.00013698,2]
[354118555,1740258633962,-500.0,0.00013698,2]
[354118556,1740258633972,-500.78384974,0.00013698,2]
[354118559,1740258633982,-500.0,0.00013698,2]
[354118561,1740258633992,-500.0,0.00013698,2]
[354118563,1740258634002,-502.64100917,0.00013698,2]
[354118565,1740258634012,-500.67595193,0.00013698,2]
[354118567,1740258634022,-500.75468648,0.00013698,2]
[354118569,1740258634031,-500.0,0.00013698,2]
[354118571,1740258634040,-503.74310598,0.00013698,2]
[354118573,1740258634050,-500.0,0.00013698,2]
[354118575,1740258634059,-500.0,0.00013698,2]
[354118577,1740258634069,-500.0,0.00013698,2]
[354118579,1740258634079,-500.0,0.00013698,2]
[354118581,1740258634088,-500.0,0.00013698,2]
[354118583,1740258634097,-500.0,0.00013698,2]
[354118585,1740258634107,-500.0,0.00013698,2]
[354118587,1740258634116,-500.0,0.00013698,2]
[354118589,1740258634125,-500.0,0.00013698,2]
[354118591,1740258634135,-500.27841536,0.00013698,2]
[354118593,1740258634144,-500.0,0.00013698,2]
[354118595,1740258634156,-500.0,0.00013698,2]
[354118597,1740258634167,-290.57924227,0.00013698,2]
[354118598,1740258634176,-500.0,0.00013698,2]
[354118600,1740258634186,-415.66286563,0.00013698,2]
[354118602,1740258634199,-500.0,0.00013698,2]
[354118605,1740258634210,-500.0,0.00013698,2]
[354118607,1740258634219,-500.0,0.00013698,2]
[354118608,1740258634229,-500.0,0.00013698,2]
[354118610,1740258634238,-503.3429473,0.00013698,2]
[354118613,1740258634248,-500.0,0.00013698,2]
[354118615,1740258634257,-500.0,0.00013698,2]
[354118617,1740258634266,-228.72462489,0.00013698,2]
[354118619,1740258634276,-500.0,0.00013698,2]
[354118621,1740258634287,-500.0,0.00013698,2]
[354118623,1740258634300,-500.99768978,0.00013698,2]
[354118625,1740258634310,-500.0,0.00013698,2]
[354118627,1740258634319,-500.0,0.00013698,2]
[354118629,1740258634328,-500.0,0.00013698,2]
[354118631,1740258634339,-500.0,0.00013698,2]
[354118633,1740258634348,-500.0,0.00013698,2]
[354118635,1740258634357,-500.0,0.00013698,2]
[354118637,1740258634366,-516.57767963,0.00013698,2]
[354118639,1740258634377,-500.0,0.00013698,2]
[354118641,1740258634385,-500.31907885,0.00013698,2]
[354118643,1740258634395,-500.0,0.00013698,2]
[354118645,1740258634404,-500.0,0.00013698,2]
[354118647,1740258634413,-548.63468858,0.00013698,2]
[354118649,1740258634422,-500.0,0.00013698,2]
[354118651,1740258634431,-500.0,0.00013698,2]
[354118653,1740258634440,-500.0,0.00013698,2]
[354118655,1740258634449,-500.0,0.00013698,2]
[354118656,1740258634459,-500.0,0.00013698,2]
[354118659,1740258634469,-500.0,0.00013698,2]
[354118661,1740258634478,-500.0,0.00013698,2]
[354118662,1740258634487,-500.0,0.00013698,2]
[354118665,1740258634497,-500.92866813,0.00013698,2]
[354118667,1740258634506,-500.0,0.00013698,2]
[354118669,1740258634515,-500.0,0.00013698,2]
[354118671,1740258634524,-500.0,0.00013698,2]
[354118673,1740258634533,-500.0,0.00013698,2]
[354118675,1740258634542,-500.0,0.00013698,2]
[354118677,1740258634551,-500.0,0.00013698,2]
[354118679,1740258634560,-1017.4,0.00013698,2]
[354118681,1740258634571,-1017.4,0.00013698,2]
[354118683,1740258634580,-500.0,0.00013698,2]
[354118685,1740258634589,-1017.4,0.00013698,2]
[354118687,1740258634598,-1017.4,0.00013698,2]
[354118689,1740258634607,-1017.4,0.00013698,2]
[354118691,1740258634616,-317.37392882,0.00013698,2]
[354118693,1740258634626,-500.0,0.00013698,2]
[354118695,1740258634635,-500.0,0.00013698,2]
[354118697,1740258634644,-581.41995217,0.00013698,2]
[354118699,1740258634654,-500.0,0.00013698,2]
[354118701,1740258634663,-505.88218066,0.00013698,2]
[354118703,1740258634672,-500.0,0.00013698,2]
[354118705,1740258634681,-500.0,0.00013698,2]
[354118707,1740258634691,-500.0,0.00013698,2]
[354118709,1740258634700,-500.0,0.00013698,2]
[354118711,1740258634709,-500.0,0.00013698,2]
[354118713,1740258634718,-500.0,0.00013698,2]
[354118715,1740258634729,-500.0,0.00013698,2]
[354118717,1740258634737,-500.0,0.00013698,2]
[354118719,1740258634747,-500.0,0.00013698,2]
[354118721,1740258634756,-500.0,0.00013698,2]
[354118723,1740258634765,-500.0,0.00013698,2]
[354118725,1740258634774,-500.0,0.00013698,2]
[354118727,1740258634783,-500.0,0.00013698,2]
[354118729,1740258634792,-500.0,0.00013698,2]
[354118731,1740258634802,-500.0,0.00013698,2]
[354118733,1740258634811,-500.0,0.00013698,2]
[354118735,1740258634820,-500.0,0.00013698,2]
[354118737,1740258634830,-500.0,0.00013698,2]
[354118739,1740258634839,-500.0,0.00013698,2]
[354118741,1740258634848,-500.0,0.00013698,2]
[354118743,1740258634857,-500.0,0.00013698,2]
[354118745,1740258634866,-500.0,0.00013698,2]
[354118747,1740258634875,-423.1100184,0.00013698,2]
[354118749,1740258634885,-500.0,0.00013698,2]
[354118751,1740258634894,-500.0,0.00013698,2]
[354118753,1740258634903,-500.0,0.00013698,2]
[354118755,1740258634913,-500.0,0.00013698,2]
[354118757,1740258634922,-500.0,0.00013698,2]
[354118759,1740258634932,-500.0,0.00013698,2]
[354118761,1740258634941,-500.0,0.00013698,2]
[354118763,1740258634950,-591.01742791,0.00013698,2]
[354118765,1740258634959,-530.13,0.00013698,2]
[354118767,1740258634969,-500.0,0.00013698,2]
[354118769,1740258634978,-500.0,0.00013698,2]
[354118771,1740258634987,-500.0,0.00013698,2]
[354118773,1740258634996,-12280.78,0.00013698,2]
[354118775,1740258635006,-500.0,0.00013698,2]
[354118777,1740258635015,-506.58734621,0.00013698,2]
[354118779,1740258635024,-595.8,0.00013698,2]
[354118781,1740258635034,-500.0,0.00013698,2]
[354118783,1740258635043,-500.0,0.00013698,2]
[354118785,1740258635053,-500.0,0.00013698,2]
[354118787,1740258635062,-500.0,0.00013698,2]
[354118789,1740258635071,-503.79120332,0.00013698,2]
[354118791,1740258635081,-500.0,0.00013698,2]
[354118793,1740258635090,-500.0,0.00013698,2]
[354118795,1740258635099,-500.0,0.00013698,2]
[354118797,1740258635108,-500.0,0.00013698,2]
[354118799,1740258635118,-500.0,0.00013698,2]
[354118801,1740258635129,-500.0,0.00013698,2]
[354118803,1740258635139,-536.08838508,0.00013698,2]
[354118805,1740258635148,-500.0,0.00013698,2]
[354118807,1740258635158,-500.0,0.00013698,2]
[354118809,1740258635167,-500.0,0.00013698,2]
[354118812,1740258635176,-500.0,0.00013698,2]
[354118814,1740258635186,-500.0,0.00013698,2]
[354118816,1740258635195,-500.0,0.00013698,2]
[354118818,1740258635205,-570.83,0.00013698,2]
[354118820,1740258635214,-288.91763651,0.00013698,2]
[354118821,1740258635223,-150.41863329,0.00013698,2]
[354118824,1740258635233,-500.0,0.00013698,2]
[354118826,1740258635242,-733.3,0.00013698,2]
[354118828,1740258635252,-500.0,0.00013698,2]
[354118829,1740258635262,-500.0,0.00013698,2]
[354118831,1740258635272,-500.0,0.00013698,2]
[354118833,1740258635282,-500.0,0.00013698,2]
[354118835,1740258635293,-500.0,0.00013698,2]
[354118837,1740258635305,-502.81041958,0.00013698,2]
[354118839,1740258635314,-500.0,0.00013698,2]
[354118841,1740258635323,-500.0,0.00013698,2]
[354118843,1740258635335,-500.0,0.00013698,2]
[354118845,1740258635351,-500.0,0.00013698,2]
[354118856,1740258635444,-500.0,0.00013698,2]
[354118858,1740258635453,-500.0,0.00013698,2]
[354118860,1740258635463,-500.0,0.00013698,2]
[354118862,1740258635472,-500.0,0.00013698,2]
[354118864,1740258635481,-500.0,0.00013698,2]
[354118866,1740258635490,-500.0,0.00013698,2]
[354118868,1740258635499,-500.0,0.00013698,2]
[354118870,1740258635508,-500.0,0.00013698,2]
[354118872,1740258635518,-420.0,0.00013736,2]
[354118874,1740258635527,-500.0,0.0001378,2]
[354118876,1740258635536,-500.0,0.0001378,2]
[354118878,1740258635545,-501.42265861,0.0001378,2]
[354118880,1740258635554,-500.0,0.0001378,2]
[354118882,1740258635565,-500.0,0.0001378,2]
[354118884,1740258635574,-500.0,0.0001378,2]
[354118886,1740258635583,-500.0,0.0001378,2]
[354118888,1740258635592,-164.11,0.0001378,2]
[354118890,1740258635601,-165.71,0.0001378,2]
[354118892,1740258635611,-582.92,0.0001378,2]
[354118894,1740258635619,-500.0,0.0001378,2]
[354118896,1740258635628,-153.04610401,0.0001378,2]
[354118898,1740258635638,-500.0,0.0001378,2]
[354118900,1740258635646,-500.0,0.0001378,2]
[354118902,1740258635656,-500.0,0.0001378,2]
[354118904,1740258635665,-500.0,0.0001378,2]
[354118906,1740258635674,-500.0,0.0001378,2]
[354118908,1740258635685,-500.0,0.0001378,2]
[354118910,1740258635701,-500.0,0.0001378,2]
[354118912,1740258635711,-500.0,0.0001378,2]
[354118914,1740258635720,-500.0,0.0001378,2]
[354118916,1740258635729,-500.0,0.0001378,2]
[354118918,1740258635739,-500.0,0.0001378,2]
[354118919,1740258635748,-12280.78,0.0001378,2]
[354118921,1740258635758,-500.0,0.0001378,2]
[354118923,1740258635767,-595.8,0.0001378,2]
[354118926,1740258635777,-516.87827575,0.0001378,2]
[354118928,1740258635787,-500.0,0.0001378,2]
[354118930,1740258635796,-500.0,0.0001378,2]
[354118932,1740258635806,-180.69,0.0001378,2]
[354118934,1740258635815,-500.0,0.0001378,2]
[354118936,1740258635824,-629.83837481,0.0001378,2]
[354118938,1740258635832,-500.0,0.0001378,2]
[354118940,1740258635841,-733.3,0.0001378,2]
[354118942,1740258635851,-500.0,0.0001378,2]
[354118944,1740258635860,-500.0,0.0001378,2]
[354118946,1740258635870,-500.0,0.0001378,2]